[Event "*** SCC Grand Prix: Titled Tuesday Blitz"]
[Site "Chess.com"]
[Date "2020.08.04"]
[Round "2"]
[White "Bigfish1995"]
[Black "12teen"]
[Result "0-1"]
[WhiteElo "2979"]
[BlackElo "2666"]
[TimeControl "180+1"]
[EndTime "14:03:36 PDT"]
[Termination "12teen won by checkmate"]

1. d4 {[%clk 0:03:00.9]} 1... b6 {[%clk 0:02:58.6]} 2. h4 {[%clk 0:02:58]} 2...
Bb7 {[%clk 0:02:59.5]} 3. h5 {[%clk 0:02:58.2]} 3... h6 {[%clk 0:02:59.9]} 4. c4
{[%clk 0:02:57.4]} 4... Nf6 {[%clk 0:02:59.5]} 5. Nc3 {[%clk 0:02:57.7]} 5... e6
{[%clk 0:02:59.8]} 6. a3 {[%clk 0:02:58.1]} 6... d5 {[%clk 0:03:00.2]} 7. Bf4
{[%clk 0:02:56.3]} 7... dxc4 {[%clk 0:02:59.4]} 8. e3 {[%clk 0:02:55.9]} 8... a6
{[%clk 0:02:59.7]} 9. Bxc4 {[%clk 0:02:43.7]} 9... Bxg2 {[%clk 0:02:59.5]} 10.
Rh2 {[%clk 0:02:43.5]} 10... Bb7 {[%clk 0:02:59]} 11. Nf3 {[%clk 0:02:44.1]}
11... Nbd7 {[%clk 0:02:57.7]} 12. Ne5 {[%clk 0:02:42.4]} 12... Nxe5 {[%clk
0:02:54.5]} 13. Bxe5 {[%clk 0:02:42.5]} 13... Nd7 {[%clk 0:02:38.6]} 14. Bg3
{[%clk 0:02:40.4]} 14... Bd6 {[%clk 0:02:34]} 15. f4 {[%clk 0:02:40.7]} 15... b5
{[%clk 0:02:27]} 16. Bd3 {[%clk 0:02:35.6]} 16... c5 {[%clk 0:02:27]} 17. Be4
{[%clk 0:02:25]} 17... Qc7 {[%clk 0:02:18]} 18. Qf3 {[%clk 0:02:23.2]} 18... Rb8
{[%clk 0:01:57.2]} 19. Bxb7 {[%clk 0:02:18.1]} 19... Qxb7 {[%clk 0:01:55.2]} 20.
d5 {[%clk 0:02:19]} 20... exd5 {[%clk 0:01:39.4]} 21. Nxd5 {[%clk 0:02:16.7]}
21... Nb6 {[%clk 0:01:35.9]} 22. O-O-O {[%clk 0:02:16.3]} 22... Nxd5 {[%clk
0:01:29.6]} 23. Rxd5 {[%clk 0:02:14.9]} 23... O-O {[%clk 0:01:27.5]} 24. e4
{[%clk 0:02:12.2]} 24... Rfd8 {[%clk 0:01:26.3]} 25. Rhd2 {[%clk 0:01:58.6]}
25... Be7 {[%clk 0:01:25.7]} 26. Bf2 {[%clk 0:01:17.6]} 26... c4 {[%clk
0:01:13.5]} 27. Qg4 {[%clk 0:01:17.8]} 27... c3 {[%clk 0:01:00.3]} 28. bxc3
{[%clk 0:01:16.6]} 28... Bxa3+ {[%clk 0:01:00.5]} 29. Kd1 {[%clk 0:01:17.1]}
29... Rxd5 {[%clk 0:00:56.4]} 30. Rxd5 {[%clk 0:01:17.1]} 30... Re8 {[%clk
0:00:50.3]} 31. Bd4 {[%clk 0:01:08.1]} 31... Bf8 {[%clk 0:00:49.9]} 32. Qf5
{[%clk 0:01:07.7]} 32... Qc6 {[%clk 0:00:44.1]} 33. Rd7 {[%clk 0:01:07.3]} 33...
Qc4 {[%clk 0:00:42]} 34. Kd2 {[%clk 0:00:52.6]} 34... b4 {[%clk 0:00:41.5]} 35.
Qd5 {[%clk 0:00:52.7]} 35... bxc3+ {[%clk 0:00:40.1]} 36. Bxc3 {[%clk
0:00:52.4]} 36... Rxe4 {[%clk 0:00:34.4]} 37. Qxc4 {[%clk 0:00:48.2]} 37... Rxc4
{[%clk 0:00:35.3]} 38. f5 {[%clk 0:00:40.2]} 38... Bb4 {[%clk 0:00:29.5]} 39.
Bxb4 {[%clk 0:00:39.3]} 39... Rxb4 {[%clk 0:00:29.5]} 40. Rd8+ {[%clk 0:00:36]}
40... Kh7 {[%clk 0:00:29.5]} 41. f6 {[%clk 0:00:36.5]} 41... gxf6 {[%clk
0:00:28.5]} 42. Ra8 {[%clk 0:00:33.6]} 42... Rb5 {[%clk 0:00:26.1]} 43. Rxa6
{[%clk 0:00:33.1]} 43... Kg7 {[%clk 0:00:26.6]} 44. Ke3 {[%clk 0:00:32.8]} 44...
Rxh5 {[%clk 0:00:27.1]} 45. Kf4 {[%clk 0:00:33.7]} 45... Rg5 {[%clk 0:00:27.6]}
46. Ra1 {[%clk 0:00:32.3]} 46... h5 {[%clk 0:00:28]} 47. Rh1 {[%clk 0:00:32.8]}
47... Kg6 {[%clk 0:00:28.4]} 48. Kf3 {[%clk 0:00:32.9]} 48... Rg4 {[%clk
0:00:28.8]} 49. Ra1 {[%clk 0:00:31.8]} 49... f5 {[%clk 0:00:29.4]} 50. Ra8
{[%clk 0:00:31.1]} 50... f6 {[%clk 0:00:27.5]} 51. Ra7 {[%clk 0:00:30.3]} 51...
h4 {[%clk 0:00:27.4]} 52. Ra8 {[%clk 0:00:30.2]} 52... Rg3+ {[%clk 0:00:27.2]}
53. Kf4 {[%clk 0:00:30.1]} 53... Rg4+ {[%clk 0:00:27.6]} 54. Kf3 {[%clk
0:00:30.3]} 54... Kg7 {[%clk 0:00:26.9]} 55. Ra5 {[%clk 0:00:29.5]} 55... Rg5
{[%clk 0:00:27.1]} 56. Ra4 {[%clk 0:00:28.1]} 56... Rh5 {[%clk 0:00:25]} 57. Kg2
{[%clk 0:00:26.6]} 57... h3+ {[%clk 0:00:24.4]} 58. Kh2 {[%clk 0:00:26.5]} 58...
Kg6 {[%clk 0:00:25.1]} 59. Ra8 {[%clk 0:00:12]} 59... Kg5 {[%clk 0:00:24.8]} 60.
Rg8+ {[%clk 0:00:12.1]} 60... Kf4 {[%clk 0:00:25.2]} 61. Rg6 {[%clk 0:00:12.4]}
61... Ke3 {[%clk 0:00:22.6]} 62. Rxf6 {[%clk 0:00:12.4]} 62... f4 {[%clk
0:00:23.1]} 63. Re6+ {[%clk 0:00:09.8]} 63... Kf3 {[%clk 0:00:23.6]} 64. Ra6
{[%clk 0:00:09.6]} 64... Re5 {[%clk 0:00:21.7]} 65. Kxh3 {[%clk 0:00:07.8]}
65... Rh5# {[%clk 0:00:21.8]} 0-1

[Event "*** SCC Grand Prix: Titled Tuesday Blitz"]
[Site "Chess.com"]
[Date "2020.08.04"]
[Round "2"]
[White "IMHansNiemann"]
[Black "Goryachkina"]
[Result "1-0"]
[WhiteElo "2889"]
[BlackElo "2584"]
[TimeControl "180+1"]
[EndTime "14:03:46 PDT"]
[Termination "IMHansNiemann won by resignation"]

1. d4 {[%clk 0:03:00.9]} 1... d5 {[%clk 0:02:59.7]} 2. Nc3 {[%clk 0:02:53.5]}
2... Bf5 {[%clk 0:02:58.7]} 3. Bf4 {[%clk 0:02:53.5]} 3... c6 {[%clk 0:02:55.9]}
4. f3 {[%clk 0:02:53.2]} 4... e6 {[%clk 0:02:49.6]} 5. e4 {[%clk 0:02:51.7]}
5... Bg6 {[%clk 0:02:49.5]} 6. a3 {[%clk 0:02:46.7]} 6... Nf6 {[%clk 0:02:48.5]}
7. e5 {[%clk 0:02:29.2]} 7... Nfd7 {[%clk 0:02:47.9]} 8. Bd3 {[%clk 0:02:27.8]}
8... c5 {[%clk 0:02:42.6]} 9. Nge2 {[%clk 0:02:27.4]} 9... Nc6 {[%clk
0:02:41.9]} 10. Nb5 {[%clk 0:02:02.4]} 10... c4 {[%clk 0:02:29]} 11. Bxg6 {[%clk
0:01:59.5]} 11... hxg6 {[%clk 0:02:28.8]} 12. O-O {[%clk 0:01:58.6]} 12... a6
{[%clk 0:02:18]} 13. Nd6+ {[%clk 0:01:56.8]} 13... Bxd6 {[%clk 0:02:17.8]} 14.
exd6 {[%clk 0:01:56.9]} 14... g5 {[%clk 0:02:10.6]} 15. Bg3 {[%clk 0:01:55.7]}
15... f5 {[%clk 0:02:06.6]} 16. b3 {[%clk 0:01:48.8]} 16... cxb3 {[%clk
0:02:00.5]} 17. cxb3 {[%clk 0:01:48.1]} 17... f4 {[%clk 0:01:52.9]} 18. Bf2
{[%clk 0:01:48]} 18... Nf6 {[%clk 0:01:51.6]} 19. Qd3 {[%clk 0:01:47.5]} 19...
Kf7 {[%clk 0:01:48.4]} 20. h4 {[%clk 0:01:41.5]} 20... Nh5 {[%clk 0:01:33.6]}
21. Qd2 {[%clk 0:01:23.9]} 21... Qf6 {[%clk 0:01:26.3]} 22. hxg5 {[%clk
0:01:18.9]} 22... Qxg5 {[%clk 0:01:27.2]} 23. g4 {[%clk 0:01:18.7]} 23... Rh6
{[%clk 0:00:52.6]} 24. Kg2 {[%clk 0:01:16.9]} 24... Rah8 {[%clk 0:00:51.1]} 25.
Rh1 {[%clk 0:01:17]} 25... Ke8 {[%clk 0:00:42.5]} 26. Bh4 {[%clk 0:01:12.3]}
26... Qg6 {[%clk 0:00:42.6]} 27. Kf2 {[%clk 0:01:12.4]} 27... Nf6 {[%clk
0:00:36.1]} 28. Nxf4 {[%clk 0:01:11]} 28... Nxg4+ {[%clk 0:00:33.1]} 29. Kg3
{[%clk 0:00:55.1]} 29... Qh7 {[%clk 0:00:29.5]} 30. fxg4 {[%clk 0:00:55.1]}
30... Rxh4 {[%clk 0:00:29.3]} 31. Nh5 {[%clk 0:00:55.3]} 31... Rxg4+ {[%clk
0:00:15.7]} 32. Kxg4 {[%clk 0:00:54.1]} 32... Qf5+ {[%clk 0:00:16.1]} 33. Kg3
{[%clk 0:00:48.2]} 33... Rxh5 {[%clk 0:00:16]} 34. Rxh5 {[%clk 0:00:47.3]} 34...
Qxh5 {[%clk 0:00:16.9]} 35. Qf4 {[%clk 0:00:45.7]} 35... Qe2 {[%clk 0:00:13.2]}
36. Rf1 {[%clk 0:00:43.4]} 36... Kd7 {[%clk 0:00:09.9]} 37. Rf2 {[%clk
0:00:42.3]} 37... Qd3+ {[%clk 0:00:09.5]} 38. Kg2 {[%clk 0:00:40.6]} 38... Qxd4
{[%clk 0:00:09.2]} 39. Qf7+ {[%clk 0:00:40.9]} 39... Kxd6 {[%clk 0:00:09.1]} 40.
Qf8+ {[%clk 0:00:41.5]} 40... Kc7 {[%clk 0:00:09.1]} 41. Qf7+ {[%clk 0:00:34.7]}
41... Kb6 {[%clk 0:00:09.4]} 42. Qxe6 {[%clk 0:00:34.6]} 42... Qe4+ {[%clk
0:00:06.7]} 43. Qxe4 {[%clk 0:00:34.3]} 43... dxe4 {[%clk 0:00:07.6]} 44. Re2
{[%clk 0:00:32.1]} 44... Kc5 {[%clk 0:00:07.7]} 45. Rxe4 {[%clk 0:00:32.5]}
45... Nd4 {[%clk 0:00:08.1]} 46. Re3 {[%clk 0:00:32.8]} 46... b5 {[%clk
0:00:07.7]} 47. Rc3+ {[%clk 0:00:31.5]} 47... Kd5 {[%clk 0:00:07.4]} 48. Kf2
{[%clk 0:00:32.2]} 48... a5 {[%clk 0:00:07.8]} 49. b4 {[%clk 0:00:30.8]} 49...
axb4 {[%clk 0:00:07.8]} 50. axb4 {[%clk 0:00:31.7]} 50... Ne6 {[%clk 0:00:07.3]}
51. Ke3 {[%clk 0:00:31.6]} 51... g5 {[%clk 0:00:06.8]} 52. Rc8 {[%clk
0:00:32.2]} 52... g4 {[%clk 0:00:06.9]} 53. Rg8 {[%clk 0:00:32.6]} 53... Ke5
{[%clk 0:00:05]} 54. Rxg4 {[%clk 0:00:32.1]} 54... Nc7 {[%clk 0:00:05.5]} 55.
Rg5+ {[%clk 0:00:32.3]} 55... Kd6 {[%clk 0:00:05.3]} 56. Ke4 {[%clk 0:00:32.8]}
56... Kc6 {[%clk 0:00:04.7]} 57. Rg6+ {[%clk 0:00:33]} 57... Kd7 {[%clk
0:00:04.5]} 58. Ke5 {[%clk 0:00:32.5]} 58... Ne8 {[%clk 0:00:04.1]} 59. Rb6
{[%clk 0:00:31.7]} 59... Nc7 {[%clk 0:00:04.4]} 60. Rd6+ {[%clk 0:00:32.2]}
60... Ke7 {[%clk 0:00:04.5]} 61. Rc6 {[%clk 0:00:31.6]} 61... Kd7 {[%clk
0:00:04.9]} 62. Rc5 {[%clk 0:00:32]} 62... Na6 {[%clk 0:00:04.5]} 63. Rd5+
{[%clk 0:00:32]} 63... Kc6 {[%clk 0:00:04.9]} 64. Rd4 {[%clk 0:00:32.9]} 64...
Kb6 {[%clk 0:00:04.9]} 65. Kd6 {[%clk 0:00:32.4]} 65... Nb8 {[%clk 0:00:05.4]}
66. Kd5 {[%clk 0:00:30.7]} 66... Na6 {[%clk 0:00:05.3]} 67. Re4 {[%clk
0:00:30.9]} 67... Nc7+ {[%clk 0:00:05.6]} 68. Kd6 {[%clk 0:00:31.1]} 68... Na6
{[%clk 0:00:05.2]} 69. Kd7 {[%clk 0:00:31.7]} 69... Nb8+ {[%clk 0:00:04.8]} 70.
Kc8 {[%clk 0:00:31.4]} 70... Nc6 {[%clk 0:00:05.1]} 71. Re6 {[%clk 0:00:32]}
71... Ka7 {[%clk 0:00:04.4]} 72. Rxc6 {[%clk 0:00:32.5]} 1-0

[Event "*** SCC Grand Prix: Titled Tuesday Blitz"]
[Site "Chess.com"]
[Date "2020.08.04"]
[Round "2"]
[White "SamuelGhimpu2003"]
[Black "Guenplen"]
[Result "1/2-1/2"]
[WhiteElo "2560"]
[BlackElo "2851"]
[TimeControl "180+1"]
[EndTime "14:03:46 PDT"]
[Termination "Game drawn by repetition"]

1. d4 {[%clk 0:03:00.9]} 1... d5 {[%clk 0:02:59.1]} 2. Nf3 {[%clk 0:03:00.4]}
2... e6 {[%clk 0:02:59.4]} 3. g3 {[%clk 0:02:58.5]} 3... Nf6 {[%clk 0:02:58.7]}
4. Bg2 {[%clk 0:02:57.8]} 4... Be7 {[%clk 0:02:59.6]} 5. O-O {[%clk 0:02:57.6]}
5... O-O {[%clk 0:03:00.3]} 6. c4 {[%clk 0:02:58.2]} 6... Nbd7 {[%clk
0:03:00.3]} 7. Nc3 {[%clk 0:02:51.6]} 7... dxc4 {[%clk 0:02:59.6]} 8. e4 {[%clk
0:02:03.6]} 8... b5 {[%clk 0:02:59]} 9. e5 {[%clk 0:02:02]} 9... Nd5 {[%clk
0:02:58.6]} 10. Nxb5 {[%clk 0:02:02.5]} 10... N7b6 {[%clk 0:02:50.7]} 11. Re1
{[%clk 0:01:59]} 11... Bb7 {[%clk 0:02:44.1]} 12. h4 {[%clk 0:01:48.5]} 12...
Qd7 {[%clk 0:02:39.7]} 13. Nc3 {[%clk 0:01:46.1]} 13... Nxc3 {[%clk 0:02:39.8]}
14. bxc3 {[%clk 0:01:47]} 14... Bd5 {[%clk 0:02:35.7]} 15. Bg5 {[%clk
0:01:35.9]} 15... Rab8 {[%clk 0:02:32.5]} 16. Bxe7 {[%clk 0:01:33]} 16... Qxe7
{[%clk 0:02:33.4]} 17. Qc2 {[%clk 0:01:30.6]} 17... h6 {[%clk 0:02:30.7]} 18.
Nd2 {[%clk 0:01:28.1]} 18... c6 {[%clk 0:02:05.6]} 19. Reb1 {[%clk 0:01:18.2]}
19... Qa3 {[%clk 0:02:02.7]} 20. Rb4 {[%clk 0:00:48.1]} 20... a5 {[%clk
0:01:57.7]} 21. Nb1 {[%clk 0:00:47.6]} 21... axb4 {[%clk 0:01:49.4]} 22. Nxa3
{[%clk 0:00:47.7]} 22... bxa3 {[%clk 0:01:50.3]} 23. Rb1 {[%clk 0:00:48.2]}
23... Bxg2 {[%clk 0:01:44.4]} 24. Kxg2 {[%clk 0:00:49.1]} 24... Nd5 {[%clk
0:01:44.7]} 25. Rxb8 {[%clk 0:00:47]} 25... Rxb8 {[%clk 0:01:45]} 26. Qa4 {[%clk
0:00:47.9]} 26... Nxc3 {[%clk 0:01:09.1]} 27. Qxc4 {[%clk 0:00:42.9]} 27... Nd5
{[%clk 0:01:05.2]} 28. Qxc6 {[%clk 0:00:38.6]} 28... g6 {[%clk 0:00:47.5]} 29.
Qa4 {[%clk 0:00:29.8]} 29... Rb4 {[%clk 0:00:46.8]} 30. Qxa3 {[%clk 0:00:26.9]}
30... Rxd4 {[%clk 0:00:46.7]} 31. Qa8+ {[%clk 0:00:23.3]} 31... Kg7 {[%clk
0:00:45.8]} 32. Qc6 {[%clk 0:00:19.4]} 32... Rd2 {[%clk 0:00:41.7]} 33. a4
{[%clk 0:00:17.4]} 33... Ra2 {[%clk 0:00:38.6]} 34. Qb5 {[%clk 0:00:14.7]} 34...
Ne3+ {[%clk 0:00:30.8]} 35. Kf3 {[%clk 0:00:14]} 35... Nd1 {[%clk 0:00:29.7]}
36. a5 {[%clk 0:00:11.5]} 36... Rxf2+ {[%clk 0:00:26.9]} 37. Kg4 {[%clk
0:00:11.7]} 37... Ne3+ {[%clk 0:00:19.7]} 38. Kh3 {[%clk 0:00:11.3]} 38... Ra2
{[%clk 0:00:18.3]} 39. Qb3 {[%clk 0:00:08.9]} 39... Rxa5 {[%clk 0:00:16.9]} 40.
Qxe3 {[%clk 0:00:09.3]} 40... h5 {[%clk 0:00:12.5]} 41. Qf4 {[%clk 0:00:09.4]}
41... Rd5 {[%clk 0:00:12]} 42. Qf6+ {[%clk 0:00:08.9]} 42... Kg8 {[%clk
0:00:12]} 43. Kg2 {[%clk 0:00:09.8]} 43... Rd4 {[%clk 0:00:09.2]} 44. Kf3 {[%clk
0:00:09.9]} 44... Rg4 {[%clk 0:00:09.2]} 45. Qd8+ {[%clk 0:00:07.5]} 45... Kg7
{[%clk 0:00:09.6]} 46. Qf6+ {[%clk 0:00:08.4]} 46... Kg8 {[%clk 0:00:10]} 47.
Kf2 {[%clk 0:00:06]} 47... Rd4 {[%clk 0:00:09.7]} 48. Ke3 {[%clk 0:00:04.7]}
48... Rg4 {[%clk 0:00:09.7]} 49. Qf3 {[%clk 0:00:04.7]} 49... Kg7 {[%clk
0:00:09.1]} 50. Kf2 {[%clk 0:00:02.5]} 50... Kg8 {[%clk 0:00:08.7]} 51. Ke3
{[%clk 0:00:02.5]} 51... Kg7 {[%clk 0:00:08.5]} 52. Qf6+ {[%clk 0:00:02.9]}
52... Kg8 {[%clk 0:00:08.5]} 53. Kf3 {[%clk 0:00:03.8]} 53... Rd4 {[%clk
0:00:08]} 54. Qg5 {[%clk 0:00:03.5]} 54... Kg7 {[%clk 0:00:04.9]} 55. Qf6+
{[%clk 0:00:03.2]} 55... Kg8 {[%clk 0:00:05]} 56. Ke3 {[%clk 0:00:03.9]} 56...
Rg4 {[%clk 0:00:04.7]} 1/2-1/2

[Event "*** SCC Grand Prix: Titled Tuesday Blitz"]
[Site "Chess.com"]
[Date "2020.08.04"]
[Round "2"]
[White "Sekar24"]
[Black "The_Machine04"]
[Result "1-0"]
[WhiteElo "2458"]
[BlackElo "2253"]
[TimeControl "180+1"]
[EndTime "14:03:48 PDT"]
[Termination "Sekar24 won on time"]

1. e4 {[%clk 0:03:00.9]} 1... d6 {[%clk 0:01:57.9]} 2. d4 {[%clk 0:02:57]} 2...
Nf6 {[%clk 0:01:53.9]} 3. Nc3 {[%clk 0:02:56.3]} 3... e5 {[%clk 0:01:54.4]} 4.
Nf3 {[%clk 0:02:56.2]} 4... Nbd7 {[%clk 0:01:50.9]} 5. Bc4 {[%clk 0:02:55.4]}
5... Be7 {[%clk 0:01:49.6]} 6. O-O {[%clk 0:02:55.6]} 6... O-O {[%clk
0:01:48.8]} 7. h3 {[%clk 0:02:56.1]} 7... c6 {[%clk 0:01:48.8]} 8. a4 {[%clk
0:02:56.1]} 8... b6 {[%clk 0:01:47.3]} 9. Qe2 {[%clk 0:02:55.4]} 9... a6 {[%clk
0:01:46.6]} 10. Ba2 {[%clk 0:02:48.7]} 10... Rb8 {[%clk 0:01:44.7]} 11. Rd1
{[%clk 0:02:47.6]} 11... Qc7 {[%clk 0:01:42]} 12. Nh4 {[%clk 0:02:47.3]} 12...
exd4 {[%clk 0:01:36.5]} 13. Rxd4 {[%clk 0:02:46.3]} 13... Nc5 {[%clk 0:01:37.4]}
14. Rd1 {[%clk 0:02:34.8]} 14... Rd8 {[%clk 0:01:20.1]} 15. Qf3 {[%clk
0:02:30.7]} 15... Be6 {[%clk 0:01:13.2]} 16. Nf5 {[%clk 0:02:26]} 16... Bf8
{[%clk 0:01:12.7]} 17. Bg5 {[%clk 0:02:16.3]} 17... Ncd7 {[%clk 0:01:03.9]} 18.
Bxe6 {[%clk 0:02:00.3]} 18... fxe6 {[%clk 0:00:59.7]} 19. Nh6+ {[%clk
0:01:59.7]} 19... gxh6 {[%clk 0:00:56.2]} 20. Bxf6 {[%clk 0:01:59.9]} 20... Nxf6
{[%clk 0:00:57.1]} 21. Qxf6 {[%clk 0:02:00.2]} 21... Qf7 {[%clk 0:00:52.9]} 22.
Qh4 {[%clk 0:01:59.5]} 22... Qe7 {[%clk 0:00:38.6]} 23. Qh5 {[%clk 0:01:54.9]}
23... Qf7 {[%clk 0:00:35.8]} 24. Qg4+ {[%clk 0:01:52.8]} 24... Qg6 {[%clk
0:00:34.9]} 25. Qe2 {[%clk 0:01:48.6]} 25... d5 {[%clk 0:00:21.8]} 26. Qxa6
{[%clk 0:01:42.9]} 26... Bc5 {[%clk 0:00:17.5]} 27. Qe2 {[%clk 0:01:28.7]} 27...
Kh8 {[%clk 0:00:16]} 28. Kh1 {[%clk 0:01:15.1]} 28... Rg8 {[%clk 0:00:15.5]} 29.
f4 {[%clk 0:01:14.2]} 29... Rbf8 {[%clk 0:00:14.1]} 30. Rf1 {[%clk 0:01:13.6]}
30... Qg3 {[%clk 0:00:13]} 31. Rf3 {[%clk 0:01:11]} 31... Qg7 {[%clk 0:00:12.5]}
32. exd5 {[%clk 0:01:08.6]} 32... exd5 {[%clk 0:00:12.4]} 33. Qe6 {[%clk
0:01:08.5]} 33... Qf6 {[%clk 0:00:10]} 34. Qxf6+ {[%clk 0:01:04.2]} 34... Rxf6
{[%clk 0:00:10.9]} 35. Re1 {[%clk 0:01:03.4]} 35... Rgf8 {[%clk 0:00:10.2]} 36.
g3 {[%clk 0:01:02]} 36... h5 {[%clk 0:00:10.4]} 37. h4 {[%clk 0:01:01.6]} 37...
Rg8 {[%clk 0:00:08.8]} 38. Re5 {[%clk 0:01:00]} 38... Rfg6 {[%clk 0:00:07.5]}
39. Kg2 {[%clk 0:00:59.1]} 39... Bd6 {[%clk 0:00:03.9]} 40. Rxh5 {[%clk
0:00:47.5]} 40... Re8 {[%clk 0:00:04.4]} 41. Rf2 {[%clk 0:00:45.4]} 41... Re3
{[%clk 0:00:03.7]} 42. Rg5 {[%clk 0:00:44.5]} 42... Rge6 {[%clk 0:00:02.7]} 43.
f5 {[%clk 0:00:42.4]} 43... Rf6 {[%clk 0:00:02.4]} 44. Re2 {[%clk 0:00:39]}
44... Rxe2+ {[%clk 0:00:01.1]} 45. Nxe2 {[%clk 0:00:38.8]} 45... h6 {[%clk
0:00:02]} 46. Rg6 {[%clk 0:00:38.5]} 46... Rxg6 {[%clk 0:00:02.4]} 47. fxg6
{[%clk 0:00:38.3]} 47... Kg7 {[%clk 0:00:03.3]} 48. h5 {[%clk 0:00:38.4]} 48...
Kf6 {[%clk 0:00:03.8]} 49. Nf4 {[%clk 0:00:38.1]} 49... Be5 {[%clk 0:00:03.3]}
50. c3 {[%clk 0:00:37.5]} 50... d4 {[%clk 0:00:03.1]} 51. cxd4 {[%clk 0:00:37]}
51... Bxd4 {[%clk 0:00:04]} 52. b3 {[%clk 0:00:37.5]} 52... c5 {[%clk
0:00:03.8]} 53. Kf3 {[%clk 0:00:37.3]} 53... Be5 {[%clk 0:00:03.8]} 54. Ke4
{[%clk 0:00:37.2]} 54... Bd4 {[%clk 0:00:03.3]} 55. Nd5+ {[%clk 0:00:36.5]}
55... Kg5 {[%clk 0:00:02.9]} 56. Nxb6 {[%clk 0:00:33.8]} 56... Kxh5 {[%clk
0:00:03]} 57. a5 {[%clk 0:00:32]} 57... Kxg6 {[%clk 0:00:02.8]} 58. a6 {[%clk
0:00:32]} 58... c4 {[%clk 0:00:02]} 59. a7 {[%clk 0:00:32.3]} 59... Bxb6 {[%clk
0:00:01.6]} 60. a8=Q {[%clk 0:00:32.1]} 60... cxb3 {[%clk 0:00:02.5]} 61. Qc6+
{[%clk 0:00:31.7]} 1-0

[Event "*** SCC Grand Prix: Titled Tuesday Blitz"]
[Site "Chess.com"]
[Date "2020.08.04"]
[Round "2"]
[White "maxip32"]
[Black "ahachess"]
[Result "1/2-1/2"]
[WhiteElo "2458"]
[BlackElo "2263"]
[TimeControl "180+1"]
[EndTime "14:03:51 PDT"]
[Termination "Game drawn by repetition"]

1. e4 {[%clk 0:03:00.9]} 1... c6 {[%clk 0:02:58.3]} 2. d4 {[%clk 0:02:59.7]}
2... d5 {[%clk 0:02:58.8]} 3. e5 {[%clk 0:03:00]} 3... c5 {[%clk 0:02:59.2]} 4.
dxc5 {[%clk 0:02:58.2]} 4... e6 {[%clk 0:02:59.3]} 5. a3 {[%clk 0:02:55.4]} 5...
Bxc5 {[%clk 0:02:53.5]} 6. b4 {[%clk 0:02:55.1]} 6... Bb6 {[%clk 0:02:51.2]} 7.
Nf3 {[%clk 0:02:54.8]} 7... a5 {[%clk 0:02:45.5]} 8. Bb2 {[%clk 0:02:53.9]} 8...
Ne7 {[%clk 0:02:43.3]} 9. Bd3 {[%clk 0:02:51.2]} 9... Nd7 {[%clk 0:02:40.2]} 10.
O-O {[%clk 0:02:48.3]} 10... Ng6 {[%clk 0:02:39.6]} 11. g3 {[%clk 0:02:42]}
11... Qe7 {[%clk 0:02:26.4]} 12. b5 {[%clk 0:02:15]} 12... O-O {[%clk
0:02:19.3]} 13. Nbd2 {[%clk 0:02:04.7]} 13... Nc5 {[%clk 0:02:08.7]} 14. a4
{[%clk 0:02:02.5]} 14... Bd7 {[%clk 0:01:49.4]} 15. Qe2 {[%clk 0:02:01.9]} 15...
Rac8 {[%clk 0:01:46.6]} 16. Ba3 {[%clk 0:02:01.5]} 16... f6 {[%clk 0:01:36.5]}
17. Rae1 {[%clk 0:01:39.4]} 17... f5 {[%clk 0:01:25.8]} 18. c4 {[%clk
0:01:34.8]} 18... Rfe8 {[%clk 0:01:19.1]} 19. cxd5 {[%clk 0:01:18.3]} 19... exd5
{[%clk 0:01:19.3]} 20. Nb3 {[%clk 0:01:19.2]} 20... Nf8 {[%clk 0:01:04]} 21.
Nbd4 {[%clk 0:01:17.7]} 21... g6 {[%clk 0:00:59.2]} 22. h4 {[%clk 0:00:47]}
22... Nfe6 {[%clk 0:00:56]} 23. Nxe6 {[%clk 0:00:40.6]} 23... Bxe6 {[%clk
0:00:56]} 24. Bxc5 {[%clk 0:00:39.8]} 24... Bxc5 {[%clk 0:00:54.4]} 25. Ng5
{[%clk 0:00:36.3]} 25... b6 {[%clk 0:00:49.5]} 26. Rc1 {[%clk 0:00:31.7]} 26...
Kg7 {[%clk 0:00:48.2]} 27. Rfe1 {[%clk 0:00:30.2]} 27... Rcd8 {[%clk 0:00:39.9]}
28. Kh2 {[%clk 0:00:27.1]} 28... Bb4 {[%clk 0:00:38.3]} 29. Red1 {[%clk
0:00:24.9]} 29... Rc8 {[%clk 0:00:37.1]} 30. f4 {[%clk 0:00:23.6]} 30... Bc5
{[%clk 0:00:36.2]} 31. Nf3 {[%clk 0:00:23.4]} 31... d4 {[%clk 0:00:32.5]} 32.
Bc4 {[%clk 0:00:21.6]} 32... Red8 {[%clk 0:00:32.4]} 33. Bxe6 {[%clk 0:00:21]}
33... Qxe6 {[%clk 0:00:32.8]} 34. Rd3 {[%clk 0:00:21.7]} 34... Rd7 {[%clk
0:00:26.1]} 35. Ng5 {[%clk 0:00:16.9]} 35... Qd5 {[%clk 0:00:24.6]} 36. e6
{[%clk 0:00:16.7]} 36... Re7 {[%clk 0:00:24.9]} 37. Re1 {[%clk 0:00:16.6]} 37...
Rce8 {[%clk 0:00:24.8]} 38. Qe5+ {[%clk 0:00:04.3]} 38... Qxe5 {[%clk
0:00:23.8]} 39. Rxe5 {[%clk 0:00:05.2]} 39... h6 {[%clk 0:00:23]} 40. Nf3 {[%clk
0:00:04.8]} 40... Rxe6 {[%clk 0:00:23.5]} 41. Kg2 {[%clk 0:00:05.1]} 41... Rxe5
{[%clk 0:00:23.8]} 42. Nxe5 {[%clk 0:00:06]} 42... Rd8 {[%clk 0:00:22]} 43. Kf3
{[%clk 0:00:05.6]} 43... Kf6 {[%clk 0:00:22.2]} 44. Nc6 {[%clk 0:00:05.7]} 44...
Rd6 {[%clk 0:00:21]} 45. Ne5 {[%clk 0:00:05.5]} 45... Re6 {[%clk 0:00:19.7]} 46.
g4 {[%clk 0:00:03.4]} 46... g5 {[%clk 0:00:16.2]} 47. hxg5+ {[%clk 0:00:02.8]}
47... hxg5 {[%clk 0:00:16.4]} 48. Nc4 {[%clk 0:00:02.3]} 48... gxf4 {[%clk
0:00:15.6]} 49. Kxf4 {[%clk 0:00:03.2]} 49... Re4+ {[%clk 0:00:15.7]} 50. Kf3
{[%clk 0:00:03.1]} 50... Rxg4 {[%clk 0:00:16.1]} 51. Rd1 {[%clk 0:00:03.7]}
51... Rh4 {[%clk 0:00:15.2]} 52. Kg3 {[%clk 0:00:03.9]} 52... Rg4+ {[%clk
0:00:15.4]} 53. Kf3 {[%clk 0:00:04.3]} 53... Rh4 {[%clk 0:00:15.9]} 54. Kg3
{[%clk 0:00:04.7]} 54... Rg4+ {[%clk 0:00:16.4]} 55. Kf3 {[%clk 0:00:05.1]}
1/2-1/2